bitfinex/quotes_ETHUSD_20251026
["timestamp","ask_amount","ask_price","bid_price","bid_amount"]
[1761516337455,1.5552,4137.9,4134.6,0.4517]
[1761516337660,1.5552,4137.9,4131.6,9.65349261]
[1761516337661,1.5552,4137.4,4133.7,0.4517]
[1761516337952,9.65349261,4137.5,4133.7,0.4517]
[1761516337953,2.41773704,4136.1,4133.7,0.4517]
[1761516338356,1.5552,4136.3,4133.7,0.4517]
[1761516338554,2.41781023,4136.0,4133.7,0.4517]
[1761516338755,1.5552,4136.2,4132.1,0.2184]
[1761516338756,2.41899836,4134.0,4132.1,0.2184]
[1761516339002,4.83535612,4136.2,4131.4,0.4413]
[1761516339003,0.50688,4134.2,4131.4,0.4413]
[1761516339296,0.50688,4133.7,4131.4,0.4413]
[1761516339497,0.50688,4133.5,4130.4,0.00148161]
[1761516339674,1.5552,4133.6,4130.5,0.4413]
[1761516339852,2.41961627,4132.9,4130.5,0.4413]
[1761516340193,2.41961627,4132.9,4130.4,0.00148161]
[1761516340194,0.50688,4133.5,4130.4,0.00148161]
[1761516340195,0.50688,4133.3,4130.4,0.00148161]
[1761516340400,0.50688,4132.7,4130.4,0.00148161]
[1761516340694,2.42068166,4131.1,4130.4,0.00148161]
[1761516341072,0.50688,4131.7,4130.4,0.00148161]
[1761516341259,2.42080581,4130.9,4130.4,0.00148161]
[1761516341459,0.50688,4131.7,4130.4,0.00148161]
[1761516341668,0.50688,4131.5,4130.4,0.00148161]
[1761516341870,0.50688,4130.5,4130.4,0.00148161]
[1761516342084,0.50688,4131.5,4130.4,0.00148161]
[1761516342398,9.65349261,4131.9,4130.4,0.00148161]
[1761516342399,2.42080296,4130.9,4130.4,0.00148161]
[1761516342602,2.4210144,4130.5,4130.4,0.00148161]
[1761516342770,2.4210144,4130.5,4125.3,0.002]
[1761516342771,0.50688,4130.4,4126.6,0.4413]
[1761516342978,1.3,4130.5,4126.6,0.4413]
[1761516342979,2.06208,4129.4,4126.6,0.4413]
[1761516343164,0.51499414,4129.3,4126.6,0.4413]
[1761516343360,0.50688,4129.6,4126.6,0.4413]
[1761516343633,0.23973916,4129.9,4126.6,0.4413]
[1761516343634,2.421836,4129.1,4126.6,0.4413]
[1761516343767,0.50688,4129.4,4126.6,0.4413]
[1761516343966,0.50688,4129.7,4126.6,0.4413]
[1761516344172,0.50688,4129.9,4126.6,0.4413]
[1761516344478,0.63972267,4130.6,4126.6,0.4413]
[1761516344479,0.50688,4130.3,4126.8,2.42314493]
[1761516344700,0.51474893,4130.5,4126.6,0.4413]
[1761516344994,9.65349261,4132.4,4127.2,0.50688]
[1761516345200,9.65349261,4132.4,4126.6,0.4413]
[1761516345412,9.65349261,4132.4,4126.1,0.83361306]
[1761516345413,9.65349261,4132.4,4127.0,0.50688]
[1761516345559,11.46749261,4133.4,4128.3,0.50688]
[1761516345760,9.65349261,4132.5,4127.1,0.4413]
[1761516345994,2.42067564,4131.1,4127.2,2.06208]
[1761516346193,2.42064581,4131.2,4127.9,2.42252424]
[1761516346396,0.50688,4132.4,4127.3,0.4413]
[1761516346397,0.50688,4132.2,4127.3,0.4413]
[1761516346607,0.50688,4131.2,4127.3,2.86417753]
[1761516346804,1.5552,4131.5,4127.3,0.4413]
[1761516346972,2.41973845,4132.7,4127.5,0.50688]
[1761516346973,1.5552,4132.1,4127.5,0.50688]
[1761516347302,2.42028503,4131.8,4128.5,2.42217242]
[1761516347595,2.42028503,4131.8,4127.4,0.4413]
[1761516347596,1.815,4132.8,4128.4,2.42224141]
[1761516347803,1.815,4132.8,4127.5,0.4413]
[1761516347804,1.815,4132.8,4128.2,1.5552]
[1761516348002,2.41940235,4133.3,4128.5,0.50688]
[1761516348003,2.41937434,4133.3,4128.5,0.50688]
[1761516348293,2.41937434,4133.3,4127.5,12.07625019]
[1761516348294,1.815,4133.4,4128.6,0.50688]
[1761516348484,1.815,4133.4,4129.1,2.42179822]
[1761516348682,1.815,4133.4,4128.7,0.4413]
[1761516348683,9.65349261,4132.9,4128.7,0.4413]
[1761516348868,0.50688,4132.5,4128.8,0.4413]
[1761516349062,0.50688,4132.3,4128.8,0.4413]
[1761516349263,2.42044269,4131.5,4128.8,0.4413]
[1761516349461,1.5552,4132.8,4128.8,0.4413]
[1761516349688,2.06208,4132.7,4128.8,0.4413]
[1761516349901,2.42040608,4131.6,4128.8,0.4413]
[1761516350099,0.50688,4132.5,4128.8,0.4413]
[1761516350299,0.63972267,4133.6,4128.8,0.4413]
[1761516350472,2.4200724,4132.2,4128.8,0.4413]
[1761516350672,2.42016384,4132.0,4128.8,0.4413]
[1761516350911,0.24765285,4134.4,4128.9,0.50688]
[1761516351207,0.23973916,4134.5,4129.0,0.50688]
[1761516351411,0.23973916,4134.3,4129.4,3.97685259]
[1761516351605,2.4196102,4132.9,4129.8,2.42142077]
[1761516351806,1.5552,4134.5,4129.9,0.4413]
[1761516351807,2.41955948,4133.0,4129.9,0.4413]
[1761516352010,2.41988973,4132.5,4129.9,0.4413]
[1761516352211,3.97410617,4134.1,4129.9,0.4413]
[1761516352399,0.50688,4133.6,4129.9,0.4413]
[1761516352712,0.50688,4133.2,4129.9,0.4413]
[1761516353009,1.25868507,4135.7,4130.1,2.42124294]
[1761516353010,4.83734428,4134.5,4130.1,2.42124294]
[1761516353212,9.65349261,4135.2,4130.1,2.42124294]
[1761516353213,0.88737552,4135.7,4130.3,0.50688]
[1761516353413,2.41822149,4135.3,4130.3,0.50688]
[1761516353708,9.65349261,4135.9,4130.3,0.50688]
[1761516353709,2.41861365,4134.6,4130.5,3.97619002]
[1761516353880,2.41805464,4135.6,4130.7,0.50688]
[1761516354081,2.41805464,4135.6,4131.2,0.50688]
[1761516354082,1.815,4135.6,4131.2,0.50688]
[1761516354276,1.815,4135.5,4131.3,0.4413]
[1761516354480,2.41853877,4134.8,4131.4,0.50688]
[1761516354681,1.815,4135.6,4131.8,2.42025184]
[1761516354931,1.815,4135.6,4130.7,1.5552]
[1761516354932,1.815,4135.6,4131.9,0.4413]
[1761516355117,9.65349261,4136.4,4132.0,2.44427835]
[1761516355325,1.815,4136.1,4131.9,0.4413]
[1761516355527,2.41761961,4136.3,4132.0,0.50688]
[1761516355712,2.41761961,4136.3,4132.8,2.41966364]
[1761516355713,2.41785645,4135.9,4132.8,2.41966364]
[1761516356047,2.41697684,4137.4,4132.9,0.02419608]
[1761516356260,2.17486696,4138.7,4132.5,4.48192271]
[1761516356261,2.4168125,4137.7,4134.0,9.65349261]
[1761516356397,0.001,4139.0,4134.2,0.50688]
[1761516356398,9.65349261,4138.9,4134.2,0.50688]
[1761516356735,0.1208,4136.9,4136.3,0.1208]
[1761516357241,0.1208,4136.9,4134.4,0.50688]
[1761516357242,0.1208,4137.3,4136.7,0.1208]
[1761516357394,0.001,4139.0,4136.8,0.4383]
[1761516357594,2.41656799,4138.1,4136.8,0.4383]
[1761516357835,0.001,4139.0,4136.8,0.4383]
[1761516358035,0.001,4139.0,4134.6,0.50688]
[1761516358036,2.41629882,4138.6,4134.6,0.50688]
[1761516358240,0.001,4139.0,4134.6,0.50688]
[1761516358241,0.001,4139.0,4135.1,0.50688]
[1761516358407,0.001,4139.0,4134.0,2.41892681]
[1761516358408,5.164,4138.1,4134.9,0.50688]
[1761516358737,2.41681316,4137.7,4134.8,0.50688]
[1761516359027,2.41681316,4137.7,4133.9,2.41900259]
[1761516359028,5.164,4138.1,4134.4,2.41872258]
[1761516359329,0.001,4139.0,4138.0,0.2184]
[1761516360312,0.001,4139.0,4136.1,0.50688]
[1761516360314,0.001,4139.0,4137.2,0.2184]
[1761516360622,0.001,4139.0,4135.8,1.5552]
[1761516360623,1.5552,4138.5,4135.8,0.4413]
[1761516360950,1.5552,4138.5,4135.3,0.2184]
[1761516360951,2.41706183,4137.3,4135.3,0.2184]
[1761516361098,1.5552,4138.3,4135.9,0.4413]
[1761516361099,2.41683806,4137.7,4135.9,0.4413]
[1761516361301,2.06208,4138.0,4135.3,0.6597]
[1761516361501,1.5552,4137.5,4135.4,0.02418145]
[1761516361700,2.41697684,4137.4,4135.4,0.4413]
[1761516361900,1.5552,4137.5,4135.4,0.4413]
[1761516362096,2.41697684,4137.4,4135.4,0.4413]
[1761516362300,2.41761769,4136.4,4135.4,0.4413]
[1761516362524,1.5552,4137.5,4135.4,0.4413]
[1761516362525,2.41713988,4137.2,4135.4,0.4413]
[1761516362730,2.41713988,4137.2,4134.1,0.2184]
[1761516362731,1.5552,4137.0,4134.5,0.4413]
[1761516362928,1.5552,4137.0,4134.1,0.2184]
[1761516362929,0.003,4137.4,4134.1,0.2184]
[1761516362930,3.97246896,4136.9,4134.1,0.2184]
[1761516363132,1.5552,4136.1,4134.1,0.2184]
[1761516363346,2.41767806,4136.2,4133.6,0.4413]
[1761516363347,2.41791189,4135.8,4133.6,0.4413]
[1761516363515,1.5552,4135.7,4132.8,0.4489]
[1761516363705,2.41964019,4132.9,4131.5,0.2343]
[1761516363908,0.50688,4134.7,4131.6,0.4489]
[1761516363909,5.096,4133.0,4131.6,0.4489]
[1761516364100,2.41984444,4132.5,4131.6,0.4489]
[1761516364301,5.093,4133.2,4131.6,0.4489]
[1761516364302,2.41949142,4133.1,4131.6,0.4489]
[1761516364528,5.093,4133.2,4130.8,0.4489]
[1761516364729,2.41981671,4132.6,4130.8,0.4489]
[1761516365043,9.65349261,4134.5,4130.8,0.4489]
[1761516365044,0.63972267,4136.3,4131.4,2.420487]
[1761516365338,0.63972267,4136.3,4131.3,9.65349261]
[1761516365339,0.63972267,4136.3,4130.8,0.4489]
[1761516365340,2.41814576,4135.4,4130.8,0.4489]
[1761516365540,9.65349261,4135.7,4129.6,9.65349261]
[1761516365541,1.5552,4135.1,4130.9,0.4489]
[1761516365840,2.41915308,4133.7,4130.9,0.4489]
[1761516366037,5.07,4133.6,4131.0,0.50688]
[1761516366244,2.41759419,4136.4,4131.0,0.50688]
[1761516366245,9.65649261,4136.6,4131.0,0.50688]
[1761516366454,2.41750271,4136.5,4131.8,0.50688]
[1761516366602,7.48153603,4136.5,4131.5,7.12308]
[1761516366802,7.48153603,4136.5,4130.9,0.62365264]
[1761516366803,5.057,4136.4,4132.8,1.5552]
[1761516367006,5.057,4136.4,4131.7,0.50688]
[1761516367007,5.057,4136.4,4132.6,2.06208]
[1761516367008,2.41801162,4135.7,4132.6,2.06208]
[1761516367201,2.41804,4135.6,4132.8,2.06208]
[1761516367513,0.1208,4135.2,4134.6,0.1208]
[1761516367715,2.41779497,4136.0,4134.6,0.4489]
[1761516367716,2.41780137,4136.0,4134.6,0.4489]
[1761516368027,2.41780137,4136.0,4132.2,2.42000926]
[1761516368028,1.5552,4135.2,4132.6,0.4489]
[1761516368236,2.41813308,4135.5,4132.6,0.4489]
[1761516368431,0.003,4136.0,4132.6,0.4489]
[1761516368619,0.001,4135.4,4132.6,0.4489]
[1761516369127,2.41821626,4135.3,4132.7,0.50688]
[1761516369327,0.001,4135.4,4132.8,0.4573]
[1761516370048,0.001,4135.4,4132.9,0.50688]
[1761516370238,0.001,4135.4,4133.1,0.50688]
[1761516370859,0.001,4135.4,4133.2,0.6894]
[1761516371063,0.001,4135.4,4133.3,0.4573]
[1761516371245,0.001,4135.4,4133.4,0.50688]
[1761516371648,0.001,4135.4,4133.5,0.4573]
[1761516372563,2.41820653,4135.3,4133.5,0.4573]
[1761516372859,0.001,4135.4,4133.5,0.4573]
[1761516373171,2.41833568,4135.1,4133.5,0.4573]
[1761516373458,0.001,4135.4,4133.5,0.4573]
[1761516373675,2.4186437,4134.6,4133.5,0.4573]
[1761516373829,2.41855361,4134.8,4133.5,0.4573]
[1761516374025,0.001,4135.4,4133.5,0.4573]
[1761516374272,0.003,4135.2,4133.5,0.4573]
[1761516374471,0.003,4135.2,4133.6,0.50688]
[1761516374833,0.003,4135.2,4133.8,0.50688]
[1761516375261,0.003,4135.2,4133.9,0.4573]
[1761516376257,0.003,4135.2,4134.0,0.50688]
[1761516376483,2.41561962,4139.8,4134.0,0.50688]
[1761516376484,0.007,4138.9,4134.2,0.50688]
[1761516376787,0.007,4138.9,4134.8,0.50688]
[1761516377008,2.41649458,4138.3,4134.9,0.50688]
[1761516377270,3.42,4138.8,4134.7,1.5552]
[1761516377271,2.41616613,4138.8,4135.8,0.50688]
[1761516377503,0.001,4139.0,4135.5,1.13053264]
[1761516377669,2.41641146,4138.4,4135.8,0.50688]
[1761516377868,0.001,4139.0,4136.0,0.50688]
[1761516378170,2.41640024,4138.4,4135.9,0.4573]
[1761516378505,1.5552,4138.8,4134.1,0.62365264]
[1761516378506,1.5552,4138.6,4134.1,0.62365264]
[1761516378705,2.42407041,4139.0,4134.1,0.4573]
[1761516378706,0.007,4138.7,4134.1,0.4573]
[1761516378904,2.41677523,4137.8,4134.2,0.4573]
[1761516379123,1.5552,4138.2,4134.2,0.4573]
[1761516379284,1.5552,4137.8,4134.2,0.4573]
[1761516379471,2.41736454,4136.8,4134.2,0.4573]
[1761516379824,1.5552,4138.4,4134.6,0.50688]
[1761516379825,2.4170407,4137.3,4134.6,0.50688]
[1761516379973,2.41662638,4138.0,4134.8,0.50688]
[1761516380316,1.5552,4138.3,4135.0,0.50688]
[1761516380470,4.888,4138.7,4135.4,2.06208]
[1761516380674,4.888,4138.7,4135.4,4.48022216]
[1761516380905,2.42299562,4139.1,4135.6,0.50688]
[1761516381106,2.42299562,4139.1,4135.7,0.4573]
[1761516381107,0.007,4139.1,4135.7,0.4573]
[1761516381329,0.007,4139.9,4135.8,0.50688]
[1761516381530,2.41593462,4139.2,4136.0,0.50688]
[1761516381744,2.41601447,4139.1,4136.0,0.50688]
[1761516382045,2.41674101,4137.9,4136.1,0.4573]
[1761516382245,2.41627603,4138.6,4136.1,0.4573]
[1761516382444,0.007,4138.9,4136.1,0.4573]
[1761516382445,2.42314431,4138.9,4136.1,0.4573]
[1761516382610,7.27815927,4138.8,4136.1,0.4573]
[1761516382812,2.41663568,4138.0,4136.1,0.4573]
[1761516383108,4.859,4138.7,4135.1,0.2321]
[1761516383109,1.5552,4138.6,4135.1,0.2321]
[1761516383308,2.41708565,4139.0,4135.1,0.2321]
[1761516383309,0.001,4139.0,4136.1,0.4573]
[1761516383552,2.41627711,4138.6,4136.1,0.4573]
[1761516383844,2.41628563,4138.6,4136.1,0.4573]
[1761516384011,0.001,4139.0,4136.1,0.4573]
[1761516384354,4.843,4139.0,4136.1,0.4573]
[1761516384561,0.001,4139.0,4136.2,0.50688]
[1761516384711,0.001,4139.0,4136.4,0.50688]
[1761516384906,0.001,4139.0,4136.3,0.4573]
[1761516385312,0.001,4139.0,4136.3,2.0125]
[1761516385841,0.001,4139.0,4136.2,3.04132623]
[1761516385842,0.001,4139.0,4136.5,0.50688]
[1761516386008,0.001,4139.0,4136.4,0.4573]
[1761516387017,0.001,4139.0,4135.8,0.83361306]
[1761516387018,0.008,4139.0,4135.6,0.62365264]
[1761516387213,0.008,4139.0,4135.7,0.4814797]
[1761516387525,0.008,4139.0,4136.1,0.62365264]
[1761516387526,0.001,4139.0,4136.1,0.62365264]
[1761516387911,0.001,4139.0,4136.2,0.96418]
[1761516388117,0.001,4139.0,4136.2,0.4573]
[1761516388318,0.001,4139.0,4137.6,0.1208]
[1761516388319,0.1208,4138.2,4137.6,0.1208]
[1761516388730,0.001,4139.0,4136.0,1.13053264]
[1761516388932,2.4170601,4139.0,4136.3,0.62365264]
[1761516389135,2.4170601,4139.0,4138.0,0.1208]
[1761516389136,0.1208,4138.6,4138.0,0.1208]
[1761516389533,0.001,4139.0,4137.0,0.4573]
[1761516389534,2.41617392,4138.8,4138.4,0.1208]
[1761516389756,2.41632427,4138.6,4137.0,0.4573]
[1761516389957,2.41635057,4138.5,4138.0,0.1208]
[1761516390327,2.41646649,4138.3,4137.0,0.4573]
[1761516390542,2.41646649,4138.3,4136.1,0.62365264]
[1761516390543,0.1208,4138.3,4137.7,0.1208]
[1761516390868,0.001,4139.0,4136.2,0.4573]
[1761516390869,2.41674496,4137.8,4136.2,0.4573]
[1761516391242,4.766,4138.3,4136.2,0.4573]
[1761516391441,2.41656799,4138.1,4135.3,0.4593]
[1761516391639,2.41740138,4136.7,4135.3,0.002]
[1761516391949,2.4168016,4137.7,4135.3,0.002]
[1761516392159,0.50688,4137.7,4135.3,0.002]
[1761516392457,1.5552,4136.7,4135.3,0.002]
[1761516392627,1.78126952,4137.6,4135.3,0.002]
[1761516392628,0.50688,4136.4,4135.3,0.002]
[1761516392976,3.97270973,4136.5,4134.9,0.002]
[1761516392977,2.41837968,4135.0,4134.9,0.002]
[1761516393281,2.41837968,4135.0,4132.0,1.06571306]
[1761516393282,2.41837968,4135.0,4132.0,0.2321]
[1761516393283,2.41940016,4133.3,4132.0,0.2321]
[1761516393427,1.5552,4134.9,4132.0,0.2321]
[1761516393428,2.41867214,4134.5,4132.0,0.2321]
[1761516393778,4.745,4135.0,4132.0,0.2321]
[1761516393779,2.546,4135.9,4132.1,0.4573]
[1761516393958,1.5552,4135.3,4132.1,0.4573]
[1761516394132,2.4183294,4135.1,4132.1,0.4573]
[1761516394332,2.41893958,4134.1,4132.1,0.4573]
[1761516394540,0.003,4135.2,4132.1,0.4573]
[1761516394768,0.003,4135.1,4132.1,0.4573]
[1761516394974,1.5552,4135.3,4132.1,0.4573]
[1761516395338,2.4185644,4134.7,4132.1,0.4573]
[1761516395540,2.41871381,4134.5,4132.1,0.4573]
[1761516395864,1.5552,4135.3,4132.1,0.4573]
[1761516396291,2.41877346,4134.4,4132.1,0.4573]
[1761516396502,2.41874969,4134.4,4132.1,0.4573]
[1761516396798,2.41879706,4134.3,4132.1,0.4573]
[1761516397098,1.5552,4135.3,4132.1,0.4573]
[1761516397286,1.5552,4135.4,4132.2,0.62365264]
[1761516397458,1.813,4137.0,4132.1,0.4573]
[1761516397459,5.81225377,4135.3,4132.3,0.4573]
[1761516397659,2.41880067,4134.3,4132.3,0.4573]
[1761516397995,2.41859804,4134.7,4132.3,0.4573]
[1761516398157,4.696,4135.2,4132.3,0.4573]
[1761516398363,2.4187568,4134.4,4132.3,0.4573]
[1761516398561,4.696,4135.2,4131.5,0.62365264]
[1761516398562,0.50688,4135.0,4131.5,0.62365264]
[1761516398860,0.50688,4135.0,4130.4,1.64535774]
[1761516398861,2.06208,4133.9,4130.5,0.4498]
[1761516399095,2.42005482,4132.2,4130.5,0.4498]
[1761516399304,2.42005482,4132.2,4130.0,0.2321]
[1761516399305,4.68,4132.6,4130.6,0.6682]
[1761516399658,4.68,4132.6,4130.7,0.4498]
[1761516399864,2.42002187,4132.2,4130.7,0.4498]
[1761516400081,1.5582,4132.5,4130.0,0.2321]
[1761516400285,7.09981432,4132.6,4130.1,0.6676]
[1761516400286,0.003,4132.4,4130.1,0.6676]
[1761516400486,0.50688,4132.2,4130.1,0.6676]
[1761516400686,4.667,4132.1,4130.2,0.4498]
[1761516401120,2.4202473,4131.9,4130.2,0.4498]
[1761516401296,2.4202473,4131.9,4130.1,0.2178]
[1761516401297,4.667,4132.1,4130.1,0.2178]
[1761516401500,4.667,4132.1,4128.8,0.002]
[1761516401501,2.42050091,4131.4,4129.5,0.4498]
[1761516401829,2.42050091,4131.4,4128.8,0.002]
[1761516401830,0.50688,4131.8,4128.9,0.6676]
[1761516402134,1.5582,4132.0,4128.9,0.6676]
[1761516402135,2.42090875,4130.7,4128.9,0.6676]
[1761516402421,0.50688,4131.5,4128.9,0.2178]
[1761516402593,0.50688,4131.3,4128.9,0.2178]
[1761516402789,2.42082941,4130.9,4128.8,0.002]
[1761516403120,2.42122957,4130.2,4128.9,0.4498]
[1761516403417,2.42122957,4130.2,4128.8,0.002]
[1761516403418,2.42119472,4130.2,4128.8,0.002]
[1761516403594,4.64,4130.3,4128.8,0.002]
[1761516404186,2.42170236,4129.4,4128.8,0.002]
[1761516404395,0.003,4130.2,4128.8,0.002]
[1761516404396,2.42124888,4130.1,4128.8,0.002]
[1761516404630,2.42177537,4129.3,4128.8,0.002]
[1761516404827,2.42184426,4129.1,4128.8,0.002]
[1761516405038,2.4214834,4129.7,4128.8,0.002]
[1761516405187,0.003,4129.8,4128.8,0.002]
[1761516405392,0.003,4129.9,4128.8,0.002]
[1761516405631,0.003,4130.0,4128.8,0.002]
[1761516405790,2.42195257,4128.9,4128.8,0.002]
[1761516406121,7.03395257,4128.9,4128.8,0.002]
[1761516406823,7.03395257,4128.9,4126.6,0.4518]
[1761516406825,4.8441398,4128.7,4126.6,0.002]
[1761516407023,1.86153868,4128.8,4126.6,0.002]
[1761516407024,0.50688,4128.0,4126.6,0.002]
[1761516407199,0.50688,4127.5,4126.6,0.002]
[1761516407403,0.32033868,4127.9,4126.6,0.002]
[1761516407404,1.5552,4127.3,4126.6,0.002]
[1761516407637,2.42312977,4126.9,4126.6,0.002]
[1761516407837,0.50788,4127.2,4126.6,0.002]
[1761516408151,2.93012375,4126.7,4126.6,0.002]
[1761516408512,2.42324375,4126.7,4126.6,0.002]
[1761516408712,2.42424375,4126.7,4126.6,0.002]
[1761516408939,2.93112375,4126.7,4126.6,0.002]
[1761516409140,2.93041739,4126.2,4126.1,0.002]
[1761516409318,9.07361739,4126.2,4126.1,0.002]
[1761516409742,9.07461739,4126.2,4126.1,0.002]
[1761516410110,9.07461739,4126.2,4123.2,0.45688402]
[1761516410416,0.50688,4125.8,4125.7,1e-08]
[1761516410650,0.50688,4125.8,4122.4,0.4498]
[1761516410651,2.93088736,4125.4,4122.6,0.1216]
[1761516410832,4.60768736,4125.4,4122.6,0.1216]
[1761516411026,2.42424242,4125.0,4122.4,0.5714]
[1761516411373,4.10104242,4125.0,4122.4,0.5714]
[1761516411650,2.42488163,4124.0,4122.4,0.5714]
[1761516411954,2.42488163,4124.0,4122.0,0.2178]
[1761516411955,0.50688,4124.9,4122.5,0.4498]
[1761516411956,0.1216,4122.8,4122.5,0.4498]
[1761516412162,0.50688,4124.6,4121.0,0.2178]
[1761516412163,4.558,4123.1,4121.0,0.2178]
[1761516412453,2.42425517,4125.0,4121.0,0.2178]
[1761516412454,0.23973916,4126.0,4121.3,0.4498]
[1761516412667,2.42245689,4128.1,4121.4,0.50688]
[1761516412668,1.816,4127.0,4121.4,0.50688]
[1761516412982,2.42376986,4125.9,4122.5,2.42570921]
[1761516413120,1.816,4127.0,4121.6,0.50688]
[1761516413121,1.297,4125.8,4121.6,2.06208]
[1761516413322,0.23973916,4127.1,4122.5,2.42568164]
[1761516413323,4.549,4125.7,4122.5,2.42568164]
[1761516413635,2.42293294,4127.3,4122.6,0.4498]
[1761516413833,1.29725506,4129.5,4122.6,0.4498]
[1761516413834,3.451,4127.4,4122.6,0.4498]
[1761516414046,2.42295018,4127.2,4122.6,2.005]
[1761516414246,2.457,4127.1,4123.1,0.50688]
[1761516414450,2.457,4127.1,4122.2,2.42584857]
[1761516414451,2.42377461,4125.8,4122.7,0.4498]
[1761516414760,2.42377461,4125.8,4122.2,2.42584652]
[1761516414761,1.5552,4127.6,4122.2,2.42584652]
[1761516414762,4.534,4125.7,4123.0,2.42540968]
[1761516415058,4.534,4125.6,4122.9,2.42546681]
[1761516415268,4.534,4125.6,4123.0,0.02425418]
[1761516415480,4.534,4125.6,4122.5,0.50688]
[1761516415774,0.50688,4125.4,4121.3,0.4498]
[1761516415977,1.5552,4125.5,4121.3,0.4498]
[1761516416143,6.88889046,4125.6,4121.3,0.4498]
[1761516416144,2.42478351,4124.1,4121.3,0.4498]
[1761516416342,2.42492096,4123.9,4121.3,0.4498]
[1761516416571,2.42507701,4123.6,4121.3,0.4498]
[1761516417080,0.50688,4124.5,4121.3,0.4498]
[1761516417081,4.544,4125.2,4121.4,0.50688]
[1761516417287,4.544,4125.2,4121.7,2.42618337]
[1761516417458,11.92684841,4128.9,4122.6,0.50688]
[1761516417459,4.526,4126.5,4122.6,0.50688]
[1761516417646,2.42270978,4127.7,4122.6,0.50688]
[1761516417647,2.42271537,4127.6,4123.3,2.42518818]
[1761516417847,2.42271537,4127.6,4122.7,0.4498]
[1761516417848,2.42330247,4126.6,4122.7,0.4498]
[1761516418045,4.537,4126.7,4122.9,3.98067721]
[1761516418248,2.42376316,4125.9,4123.1,1.5552]
[1761516418484,4.537,4126.7,4123.1,1.5552]
[1761516418690,4.537,4126.7,4123.0,0.4498]
[1761516418691,4.537,4126.7,4123.3,2.42518622]
[1761516418979,0.50688,4126.6,4123.2,2.005]
[1761516419278,2.42376253,4125.9,4123.2,0.4498]
[1761516419453,2.42365629,4126.0,4123.3,0.4498]
[1761516419652,1.5552,4126.5,4123.3,0.4498]
[1761516419958,2.546,4127.3,4123.3,0.4498]
[1761516419959,2.42242193,4128.1,4124.9,0.0744]
[1761516420183,4.521,4127.6,4125.0,0.4498]
[1761516420497,2.42194079,4129.0,4125.0,0.4498]
[1761516420498,1.33,4130.2,4125.1,1.5552]
[1761516420782,4.515,4130.1,4125.2,0.4498]
[1761516420954,2.42295516,4127.2,4125.2,0.4498]
[1761516421156,0.34105038,4130.1,4125.2,0.4498]
[1761516421365,0.2991513,4130.6,4125.5,0.50688]
[1761516421680,0.2991513,4130.6,4125.2,0.4498]
[1761516421681,2.42218377,4128.6,4125.3,2.42404358]
[1761516421850,0.23973916,4130.6,4125.4,1.5552]
[1761516421851,1.493,4129.0,4125.4,1.5552]
[1761516422180,1.493,4129.0,4124.9,0.0744]
[1761516422181,2.54565871,4125.4,4124.9,0.0744]
[1761516422482,0.05,4129.0,4124.9,0.0744]
[1761516422483,2.42225527,4128.4,4124.9,0.0744]
[1761516422788,2.42353445,4126.3,4125.0,0.4498]
[1761516422944,2.06208,4127.0,4125.0,0.4498]
[1761516423279,1.5552,4128.2,4125.0,0.4498]
[1761516423445,2.42348443,4126.3,4125.0,0.4498]
[1761516423644,1.5552,4127.9,4125.0,0.4498]
[1761516423645,2.42339957,4126.5,4125.0,0.4498]
[1761516424001,2.42337191,4126.5,4125.0,0.4498]
[1761516424288,2.42431746,4126.6,4125.0,0.4498]
[1761516424440,2.42431746,4126.6,4124.9,0.0744]
[1761516424441,0.001,4126.6,4124.9,0.0744]
[1761516424647,2.42424242,4125.0,4124.9,0.0744]
[1761516424870,9.00732242,4125.0,4124.9,1e-08]
[1761516425281,9.30647372,4125.0,4124.9,1e-08]
[1761516425700,9.68427872,4125.0,4124.9,1e-08]
[1761516425898,2.42526498,4123.3,4122.7,0.002]
[1761516426186,2.42530073,4123.2,4122.7,0.002]
[1761516426436,4.512,4123.6,4122.7,0.002]
[1761516426437,2.42512428,4123.5,4122.7,0.002]
[1761516426695,2.42530073,4123.2,4122.7,0.002]
[1761516427549,2.93218073,4123.2,4122.7,0.002]
[1761516427785,4.507,4123.7,4122.7,0.002]
[1761516428693,2.42388989,4125.6,4122.7,0.002]
[1761516428875,2.42347866,4126.3,4123.2,0.4277]
[1761516429085,2.1161513,4126.5,4123.2,0.4277]
[1761516429086,4.49,4126.2,4123.2,0.4277]
[1761516429403,2.194805,4126.5,4123.3,0.02425241]
[1761516429404,2.4233612,4126.5,4123.3,0.02425241]
[1761516429549,2.42385106,4125.7,4123.4,0.4277]
[1761516429758,1.5552,4126.5,4123.4,0.4277]
[1761516429959,2.42351512,4126.3,4123.4,0.4277]
[1761516430193,2.4236553,4126.0,4123.4,0.4277]
[1761516430366,1.5552,4126.5,4123.4,0.4277]
[1761516430584,2.42395211,4125.5,4123.4,0.4277]
[1761516430766,1.5552,4126.5,4123.4,0.4277]
[1761516430969,2.42391242,4125.6,4123.4,0.4277]
[1761516431172,1.5552,4126.5,4123.4,0.4277]
[1761516431691,0.001,4126.6,4123.4,1.04709472]
[1761516431850,2.42338102,4126.5,4123.6,3.04440562]
[1761516432052,0.001,4126.6,4123.8,0.61939472]
[1761516432257,0.001,4127.1,4126.5,0.2373]
[1761516432780,0.001,4127.1,4126.6,0.4277]
[1761516433093,0.001,4129.7,4126.6,0.4277]
[1761516433094,4.465,4129.0,4126.6,0.4277]
[1761516433395,1.5552,4128.9,4126.6,0.4277]
[1761516433577,2.488,4129.2,4126.6,0.4277]
[1761516433778,2.42131535,4130.0,4126.6,0.4277]
[1761516433779,2.42193749,4129.0,4126.6,0.4277]